bitfinex/quotes_SOLUSD_20240620
["timestamp","ask_amount","ask_price","bid_price","bid_amount"]
[1718909850824,54.79,134.67,134.62,9.28]
[1718909851740,45.51,134.67,134.62,9.28]
[1718909851919,22.3715,134.68,134.64,9.28]
[1718909852114,22.3715,134.68,134.66,9.28]
[1718909852312,22.3715,134.68,134.65,9.28]
[1718909853923,22.3715,134.68,134.61,37.12]
[1718909853924,15.2818,134.71,134.67,9.28]
[1718909854132,15.2818,134.71,134.69,9.28]
[1718909854442,6.4468,134.72,134.69,9.28]
[1718909854646,27.70366761,134.75,134.7,9.28]
[1718909855142,27.70366761,134.75,134.62,38.4744]
[1718909855143,9.45,134.74,134.62,38.4744]
[1718909855342,45.34,134.73,134.68,9.28]
[1718909855510,0.34,134.73,134.69,9.28]
[1718909855716,0.17,134.74,134.69,9.28]
[1718909855944,0.51,134.74,134.7,9.28]
[1718909856512,0.51,134.74,134.63,87.33]
[1718909856731,0.51,134.74,134.7,9.28]
[1718909857426,0.51,134.74,134.69,9.28]
[1718909858217,0.51,134.74,134.63,87.33]
[1718909858445,0.51,134.74,134.69,9.28]
[1718909862238,54.79,134.74,134.68,9.28]
[1718909862448,9.28,134.73,134.67,9.28]
[1718909862626,54.45,134.72,134.63,20.0]
[1718909862815,6.1303,134.7,134.63,20.0]
[1718909863020,0.17,134.69,134.66,9.28]
[1718909863226,0.51,134.69,134.66,9.28]
[1718909863640,0.51,134.69,134.63,20.0]
[1718909863837,0.51,134.69,134.66,9.28]
[1718909864045,0.34,134.69,134.66,9.28]
[1718909864235,0.34,134.69,134.67,9.28]
[1718909865532,0.34,134.69,134.66,9.28]
[1718909866139,0.34,134.69,134.65,9.28]
[1718909866330,0.17,134.68,134.65,9.28]
[1718909866525,0.17,134.68,134.63,20.0]
[1718909866842,0.17,134.68,134.64,29.28]
[1718909867136,0.34,134.68,134.64,9.28]
[1718909867524,0.17,134.67,134.64,9.28]
[1718909867724,0.34,134.67,134.64,9.28]
[1718909868137,0.34,134.68,134.65,9.28]
[1718909870525,0.34,134.68,134.61,9.28]
[1718909870721,0.17,134.67,134.62,20.0]
[1718909871231,0.17,134.67,134.63,9.28]
[1718909874057,0.34,134.68,134.65,9.28]
[1718909877044,0.34,134.68,134.64,9.28]
[1718909877246,0.17,134.67,134.64,9.28]
[1718909877953,0.34,134.67,134.64,9.28]
[1718909880263,22.1851,134.7,134.64,9.28]
[1718909880555,22.1851,134.7,134.66,9.28]
[1718909880939,22.1851,134.7,134.65,9.28]
[1718909881669,0.17,134.69,134.65,9.28]
[1718909881958,0.51,134.69,134.65,9.28]
[1718909883161,0.17,134.69,134.65,9.28]
[1718909883336,22.1851,134.7,134.66,9.28]
[1718909883542,6.1303,134.7,134.68,9.28]
[1718909884160,16.3525,134.73,134.68,9.28]
[1718909884339,25.6325,134.73,134.68,9.28]
[1718909884548,16.3525,134.73,134.68,9.28]
[1718909885343,0.17,134.72,134.68,9.28]
[1718909885544,0.34,134.72,134.64,15.0058]
[1718909885857,0.34,134.72,134.68,9.28]
[1718909887439,0.34,134.72,134.65,20.0]
[1718909887640,0.17,134.71,134.67,9.28]
[1718909888057,0.17,134.72,134.68,9.28]
[1718909888256,0.51,134.72,134.68,9.28]
[1718909888457,0.51,134.72,134.69,9.28]
[1718909889947,0.34,134.72,134.69,9.28]
[1718909890142,0.17,134.72,134.69,9.28]
[1718909890337,16.3525,134.73,134.69,9.28]
[1718909890551,16.3525,134.73,134.7,9.28]
[1718909892175,52.40949707,134.78,134.72,9.28]
[1718909892176,15.9236,134.77,134.72,9.28]
[1718909892464,15.9236,134.77,134.74,9.28]
[1718909893047,6.4314,134.78,134.75,9.28]
[1718909893671,6.4314,134.78,134.76,9.28]
[1718909894163,6.4314,134.78,134.68,75.898]
[1718909894164,6.4314,134.78,134.75,9.28]
[1718909894753,5.90963323,134.8,134.76,9.28]
[1718909894975,31.3981,134.81,134.76,9.28]
[1718909895645,0.51,134.8,134.76,9.28]
[1718909896559,0.51,134.8,134.68,75.898]
[1718909896759,54.79,134.8,134.75,9.28]
[1718909897061,45.51,134.8,134.69,45.0]
[1718909897262,9.28,134.78,134.73,9.28]
[1718909897467,0.17,134.77,134.73,9.28]
[1718909897651,0.34,134.78,134.74,9.28]
[1718909897852,0.17,134.77,134.74,9.28]
[1718909898366,0.34,134.78,134.74,9.28]
[1718909899667,0.34,134.78,134.68,53.568]
[1718909899973,0.17,134.77,134.73,9.28]
[1718909900153,0.17,134.77,134.72,9.28]
[1718909900352,0.34,134.77,134.72,9.28]
[1718909900560,22.0891,134.76,134.69,20.0]
[1718909900758,22.0891,134.76,134.71,9.28]
[1718909900961,0.51,134.75,134.72,9.28]
[1718909902055,0.51,134.75,134.69,20.0]
[1718909902254,45.51,134.75,134.71,9.28]
[1718909902474,9.28,134.74,134.68,9.28]
[1718909902777,0.17,134.73,134.68,9.28]
[1718909902958,0.34,134.73,134.68,9.28]
[1718909903268,0.34,134.73,134.59,9.979991]
[1718909903269,32.0612,134.71,134.62,15.0402]
[1718909903457,9.45,134.7,134.64,9.28]
[1718909903654,0.34,134.69,134.64,9.28]
[1718909903849,22.7812,134.71,134.68,9.28]
[1718909904362,22.7812,134.71,134.69,9.28]
[1718909905367,22.7812,134.71,134.63,22.33]
[1718909905574,0.17,134.7,134.64,47.84]
[1718909906176,0.51,134.7,134.64,47.84]
[1718909906558,0.51,134.7,134.64,20.0]
[1718909906757,0.51,134.7,134.63,20.0]
[1718909907774,45.51,134.7,134.63,20.0]
[1718909910872,45.51,134.7,134.62,20.0]
[1718909914483,45.51,134.7,134.6,20.0]
[1718909915187,30.0,134.69,134.6,20.0]
[1718909915481,0.34,134.68,134.6,20.0]
[1718909915664,0.17,134.67,134.6,20.0]
[1718909915859,0.17,134.67,134.61,1.48300824]
[1718909916676,0.17,134.67,134.6,20.0]
[1718909919988,0.17,134.67,134.61,1.48395906]
[1718909924576,0.34,134.68,134.61,1.48395906]
[1718909924882,0.34,134.69,134.6,20.0]
[1718909925077,0.17,134.68,134.61,1.48251868]
[1718909925580,0.17,134.68,134.6,20.0]
[1718909927385,0.17,134.68,134.65,9.28]
[1718909927588,22.2528,134.67,134.61,37.12]
[1718909927773,22.2528,134.67,134.65,9.28]
[1718909927974,0.51,134.66,134.64,9.28]
[1718909928173,0.51,134.66,134.6,20.0]
[1718909928375,0.51,134.66,134.61,20.0]
[1718909928569,0.51,134.66,134.64,9.28]
[1718909929473,0.51,134.66,134.65,9.28]
[1718909931978,0.51,134.66,134.64,9.28]
[1718909932579,0.51,134.66,134.57,20.0]
[1718909932772,0.51,134.66,134.62,9.28]
[1718909933704,0.51,134.66,134.64,9.28]
[1718909934203,0.51,134.66,134.63,9.28]
[1718909934884,0.51,134.66,134.64,9.28]
[1718909937625,0.51,134.66,134.57,20.0]
[1718909937832,0.51,134.66,134.64,9.28]
[1718909939224,6.3425,134.67,134.61,9.28]
[1718909939515,15.4055,134.7,134.66,9.28]
[1718909939717,15.4055,134.7,134.69,9.28]
[1718909940514,15.4055,134.7,134.62,20.0]
[1718909940823,15.4055,134.7,134.67,9.28]
[1718909940992,15.4055,134.7,134.66,9.28]
[1718909941199,15.4055,134.7,134.65,9.28]
[1718909941405,24.6855,134.7,134.65,9.28]
[1718909941608,45.51,134.69,134.62,20.0]
[1718909941805,45.51,134.69,134.65,9.28]
[1718909942213,45.51,134.69,134.62,20.0]
[1718909942524,15.3877,134.68,134.63,9.28]
[1718909942700,45.17,134.67,134.63,9.28]
[1718909943018,0.34,134.66,134.57,16.2776]
[1718909943318,0.17,134.65,134.64,9.28]
[1718909943528,0.17,134.65,134.59,27.86]
[1718909943818,0.17,134.65,134.6,23.62037749]
[1718909944024,0.17,134.65,134.61,3.66856349]
[1718909945020,0.17,134.65,134.61,11.09736349]
[1718909946325,0.17,134.65,134.61,3.66856349]
[1718909947320,0.34,134.66,134.6,20.0]
[1718909947505,6.1077,134.68,134.63,7.4275]
[1718909947715,6.1077,134.68,134.64,27.4269]
[1718909947908,6.1077,134.68,134.64,20.0]
[1718909948318,6.1077,134.68,134.63,20.0]
[1718909948509,6.1077,134.68,134.59,27.86]
[1718909948840,45.51,134.67,134.6,20.0]
[1718909949524,0.51,134.67,134.61,7.4288]
[1718909949725,0.51,134.67,134.62,20.0]
[1718909950300,15.1869,134.66,134.54,259.3]
[1718909950521,6.3497,134.64,134.56,27.86]
[1718909950729,0.17,134.63,134.57,20.0]
[1718909951029,0.51,134.63,134.57,20.0]
[1718909951329,0.51,134.63,134.57,27.4309]
[1718909951518,0.51,134.63,134.57,20.0]
[1718909951720,0.51,134.63,134.57,27.4307]
[1718909952543,6.3497,134.64,134.57,20.0]
[1718909952702,6.3497,134.64,134.59,27.86]
[1718909952900,6.3497,134.64,134.6,20.0]
[1718909955105,6.3497,134.64,134.58,20.0]
[1718909955106,0.17,134.63,134.58,20.0]
[1718909955417,0.51,134.63,134.58,20.0]
[1718909955618,0.51,134.63,134.57,20.0]
[1718909956114,0.51,134.63,134.57,27.431]
[1718909956351,0.51,134.63,134.58,7.4302]
[1718909956533,0.51,134.63,134.59,20.0]
[1718909960711,0.51,134.63,134.58,20.0]
[1718909961832,45.51,134.63,134.58,20.0]
[1718909963550,45.51,134.63,134.6,9.29]
[1718909964928,45.51,134.63,134.58,20.0]
[1718909965242,45.51,134.63,134.6,9.29]
[1718909970543,45.51,134.63,134.58,20.0]
[1718909970752,45.51,134.63,134.59,9.29]
[1718909971123,45.51,134.63,134.58,29.29]
[1718909971632,9.29,134.6,134.52,8.2640103]
[1718909971833,45.17,134.59,134.54,9.29]
[1718909972030,0.34,134.58,134.54,9.29]
[1718909972349,0.34,134.58,134.55,9.29]
[1718909972516,0.34,134.58,134.52,8.2641103]
[1718909972717,0.34,134.58,134.55,9.29]
[1718909972921,45.17,134.59,134.55,9.29]
[1718909973122,0.17,134.58,134.55,9.29]
[1718909973339,0.34,134.58,134.54,9.29]
[1718909973745,0.17,134.57,134.52,8.2641103]
[1718909973946,0.17,134.57,134.53,20.0]
[1718909974148,0.17,134.57,134.54,9.29]
[1718909974445,0.17,134.57,134.55,9.29]
[1718909974955,0.17,134.57,134.53,20.0]
[1718909975125,0.17,134.57,134.55,9.29]
[1718909975536,0.17,134.57,134.53,20.0]
[1718909975736,0.17,134.57,134.54,9.29]
[1718909976143,22.234,134.56,134.54,9.29]
[1718909976349,0.17,134.55,134.52,0.8304103]
[1718909976650,0.51,134.55,134.52,10.1204103]
[1718909978551,0.51,134.55,134.52,0.8304103]
[1718909978871,54.8,134.55,134.52,0.8304103]
[1718909979052,45.51,134.55,134.52,0.8304103]
[1718909979259,54.8,134.55,134.52,0.8304103]
[1718909980944,99.46,134.55,134.52,0.8304103]
[1718909981258,9.29,134.53,134.52,0.8304103]
[1718909981436,105.9123,134.53,134.52,0.8304103]
[1718909981637,96.9623,134.53,134.52,0.8304103]
[1718909981845,96.9623,134.53,134.44,20.0]
[1718909981846,150.9123,134.53,134.44,20.0]
[1718909982139,45.34,134.52,134.43,20.0]
[1718909982341,45.51,134.52,134.43,20.0]
[1718909982545,54.8,134.52,134.47,9.29]
[1718909982730,54.8,134.52,134.46,9.29]
[1718909982933,9.29,134.51,134.46,9.29]
[1718909983159,45.17,134.5,134.45,9.29]
[1718909983350,0.17,134.49,134.43,27.4385]
[1718909983543,0.34,134.49,134.45,9.29]
[1718909983864,0.17,134.48,134.45,9.29]
[1718909984052,0.34,134.48,134.45,9.29]
[1718909984258,0.34,134.48,134.46,9.29]
[1718909985464,0.34,134.48,134.45,9.29]
[1718909985662,6.5597,134.47,134.45,9.29]
[1718909985851,0.17,134.46,134.44,9.29]
[1718909986251,0.17,134.46,134.43,20.0]
[1718909986453,0.17,134.46,134.44,9.29]
[1718909987158,0.17,134.46,134.41,27.4398]
[1718909987543,0.17,134.46,134.41,20.0]
[1718909987759,45.17,134.46,134.43,9.29]
[1718909988262,0.34,134.45,134.41,27.4398]
[1718909988565,0.17,134.44,134.43,9.29]
[1718909990241,0.17,134.44,134.41,20.0]
[1718909990442,0.17,134.44,134.43,9.29]
[1718909991384,0.17,134.44,134.41,20.0]
[1718909991538,0.17,134.44,134.43,9.29]
[1718909991973,6.2197,134.47,134.43,9.29]
[1718909992275,6.2197,134.47,134.45,9.29]
[1718909993354,0.34,134.46,134.4,57.16]
[1718909993555,0.34,134.46,134.45,9.29]
[1718909993768,0.51,134.46,134.45,9.29]
[1718909993957,0.34,134.46,134.45,9.29]
[1718909994276,0.17,134.46,134.45,9.29]
[1718909994452,15.9213,134.48,134.45,9.29]
[1718909994659,0.51,134.47,134.45,9.29]
[1718909995553,0.51,134.47,134.4,57.16]
[1718909995754,45.51,134.47,134.45,9.29]
[1718909995954,45.51,134.47,134.44,9.29]
[1718909996157,45.51,134.47,134.45,9.29]
[1718909996369,0.51,134.47,134.45,9.29]
[1718909996547,45.51,134.47,134.4,27.4402]
[1718909996867,45.51,134.47,134.44,9.29]
[1718909997260,45.51,134.47,134.4,64.6002]
[1718909997767,45.51,134.47,134.44,9.29]
[1718909997974,45.51,134.47,134.4,64.6002]
[1718909997975,45.51,134.47,134.4,27.4402]
[1718909998174,45.51,134.47,134.43,9.29]
[1718909998473,45.51,134.47,134.4,20.0]
[1718909998657,6.0829,134.46,134.42,9.29]
[1718909998854,45.17,134.45,134.41,9.29]
[1718909999050,0.34,134.44,134.41,9.29]
[1718909999560,0.34,134.44,134.42,9.29]
[1718910000168,0.34,134.44,134.4,20.0]
[1718910000478,0.34,134.44,134.42,9.29]
[1718910000678,25.7458,134.43,134.39,0.8304103]
[1718910000871,54.29,134.42,134.39,0.8304103]
[1718910001053,0.17,134.41,134.39,0.8304103]
[1718910001254,0.34,134.41,134.39,0.8304103]
[1718910001559,0.51,134.41,134.39,0.8304103]
[1718910002157,6.262,134.4,134.39,0.8304103]
[1718910002385,51.432,134.4,134.39,0.8304103]
[1718910002673,51.772,134.4,134.39,0.8304103]
[1718910003573,0.51,134.4,134.39,10.1204103]
[1718910003766,0.34,134.4,134.39,10.1204103]
[1718910004078,22.9793,134.43,134.39,10.1204103]
[1718910004274,22.9793,134.43,134.39,0.8304103]
[1718910004475,22.9793,134.43,134.39,10.1204103]
[1718910004774,51.1174,134.41,134.39,0.8304103]
[1718910004976,51.1174,134.41,134.36,0.6546172]
[1718910004977,9.29,134.4,134.36,0.6546172]
[1718910005157,9.46,134.39,134.36,0.6546172]
[1718910005355,45.34,134.38,134.36,0.6546172]
[1718910005575,0.34,134.38,134.33,0.9200363]
[1718910005882,16.1949,134.36,134.33,0.9200363]
[1718910006261,51.7638,134.35,134.33,0.9200363]
[1718910006457,6.9338,134.35,134.33,0.9200363]
[1718910006664,0.17,134.36,134.33,10.2100363]
[1718910006861,0.17,134.37,134.35,9.29]
[1718910007056,6.1309,134.39,134.36,9.29]
[1718910007267,6.1309,134.39,134.37,9.29]
[1718910007475,6.1309,134.39,134.33,0.9200363]
[1718910007777,6.1309,134.39,134.33,20.9200363]
[1718910008361,0.17,134.38,134.33,20.9200363]
[1718910008557,0.51,134.38,134.33,20.9200363]
[1718910008773,0.51,134.38,134.33,0.9200363]
[1718910008774,45.51,134.38,134.33,0.9200363]
[1718910010058,90.17,134.38,134.33,0.9200363]
[1718910010258,45.51,134.38,134.33,0.9200363]
[1718910010684,90.17,134.38,134.33,0.9200363]
[1718910011075,1.72161232,134.37,134.33,0.9200363]
[1718910011469,0.17,134.36,134.33,0.9200363]
[1718910012788,0.51,134.36,134.33,0.9200363]
[1718910014666,0.17,134.36,134.33,0.9200363]
[1718910014880,1.72161232,134.37,134.33,0.9200363]
[1718910015184,15.4863,134.4,134.33,20.9200363]
[1718910015480,12.65005013,134.43,134.35,27.97]
[1718910015481,6.6058,134.43,134.35,27.97]
[1718910015679,6.1244,134.46,134.38,27.97]
[1718910015883,6.1244,134.46,134.39,27.4409]
[1718910016801,6.1244,134.46,134.39,20.0]
[1718910017466,44.66,134.45,134.37,20.0]
[1718910017671,6.1244,134.46,134.36,7.4423]
[1718910017883,7.84601232,134.46,134.37,20.0]
[1718910018095,7.84601232,134.46,134.37,27.4421]
[1718910018299,45.34,134.45,134.38,7.4413]
[1718910018793,0.17,134.44,134.37,27.4419]
[1718910019572,0.17,134.44,134.37,20.0]
[1718910020395,0.17,134.44,134.36,27.4426]
[1718910020597,0.17,134.44,134.36,20.0]
[1718910020781,0.17,134.44,134.35,20.0]
[1718910021409,60.1564,134.43,134.33,20.9200363]
[1718910021582,50.7527,134.41,134.33,20.9200363]
[1718910021779,50.7527,134.41,134.33,0.9200363]
[1718910021780,45.34,134.4,134.33,0.9200363]
[1718910022287,0.17,134.39,134.33,0.9200363]
[1718910023483,30.17,134.39,134.33,0.9200363]
[1718910023684,45.0,134.38,134.33,0.9200363]
[1718910023884,0.34,134.37,134.33,0.9200363]
[1718910024086,0.17,134.36,134.33,0.9200363]
[1718910024484,6.3539,134.34,134.33,0.9200363]
[1718910024672,51.5239,134.34,134.3,0.1956256]
[1718910024881,0.34,134.33,134.3,0.1956256]
[1718910025080,0.17,134.32,134.3,0.1956256]
[1718910026268,0.34,134.33,134.3,0.1956256]
[1718910026590,6.3539,134.34,134.3,0.1956256]
[1718910026998,0.17,134.33,134.3,0.1956256]
[1718910027895,0.34,134.33,134.3,0.1956256]
[1718910028191,0.17,134.32,134.3,0.1956256]
[1718910028390,0.34,134.32,134.3,0.1956256]
[1718910028602,30.0,134.37,134.3,0.1956256]
[1718910028801,6.0826,134.38,134.31,7.4452]
[1718910028991,6.0826,134.38,134.3,35.6114256]
[1718910029292,6.0826,134.38,134.31,20.0]
[1718910029497,6.0826,134.38,134.31,27.4452]
[1718910029883,6.0826,134.38,134.31,20.0]
[1718910030478,0.17,134.37,134.31,20.0]
[1718910030794,0.51,134.37,134.3,20.1956256]
[1718910031095,1.72157564,134.36,134.3,0.1956256]
[1718910031476,0.51,134.35,134.3,0.1956256]
[1718910034699,1.72157564,134.36,134.3,0.1956256]
[1718910034887,1.72157564,134.36,134.3,7.6413256]
[1718910035089,6.0826,134.38,134.31,20.0]
[1718910035485,6.0826,134.38,134.31,27.4452]
[1718910036591,6.0826,134.38,134.32,7.4448]
[1718910036797,6.0826,134.38,134.33,20.0]
[1718910037403,6.0826,134.38,134.32,20.0]
[1718910038418,6.0826,134.38,134.32,27.4446]
[1718910038585,6.0826,134.38,134.32,20.0]
[1718910039208,0.34,134.37,134.32,20.0]
[1718910039503,0.34,134.37,134.3,0.1956256]
[1718910039690,0.17,134.36,134.3,0.1956256]
[1718910042584,6.0826,134.38,134.3,0.1956256]
[1718910042782,6.0826,134.38,134.32,7.4444]
[1718910042987,6.0826,134.38,134.31,7.4451]
[1718910043403,6.0826,134.38,134.32,7.4447]
[1718910043612,6.0826,134.38,134.33,7.4442]
[1718910043791,6.0826,134.38,134.32,7.4447]
[1718910043993,6.0826,134.38,134.33,7.4443]
[1718910044508,6.0826,134.38,134.32,7.4447]
[1718910044720,6.0826,134.38,134.33,20.0]
[1718910044889,16.5486,134.39,134.33,20.0]
[1718910045398,16.5486,134.39,134.32,7.4449]
[1718910045595,16.5486,134.39,134.33,20.0]
[1718910046193,45.34,134.38,134.31,20.0]
[1718910046449,0.17,134.37,134.3,28.1656256]
[1718910048104,0.17,134.37,134.3,35.6114256]
[1718910048291,0.17,134.37,134.3,28.1656256]
[1718910049313,16.5486,134.39,134.3,28.1656256]
[1718910049510,16.5486,134.39,134.3,35.6113256]
[1718910049697,16.5486,134.39,134.3,28.1656256]
[1718910049898,16.5486,134.39,134.3,35.6114256]
[1718910050302,16.5486,134.39,134.31,27.4453]
[1718910050702,0.51,134.38,134.31,27.4453]
[1718910051210,0.51,134.38,134.31,20.0]
[1718910051598,45.51,134.38,134.31,20.0]
[1718910051811,45.51,134.38,134.3,0.1956256]
[1718910051812,67.4331,134.37,134.3,0.1956256]
[1718910052007,6.5879,134.35,134.3,0.1956256]
[1718910052214,0.17,134.34,134.3,0.1956256]
[1718910052523,45.51,134.34,134.3,0.1956256]
[1718910053601,0.51,134.34,134.3,0.1956256]
[1718910053807,45.51,134.34,134.3,0.1956256]
[1718910056204,0.51,134.34,134.3,0.1956256]
[1718910056400,75.51,134.34,134.3,0.1956256]
[1718910056623,45.51,134.34,134.3,0.1956256]
[1718910058523,90.17,134.34,134.3,0.1956256]
[1718910058729,90.17,134.34,134.26,0.8304103]
[1718910058730,15.6852,134.33,134.26,0.8304103]
[1718910059027,45.34,134.32,134.26,0.8304103]
[1718910059229,0.17,134.31,134.26,0.8304103]
[1718910061523,15.6852,134.33,134.26,8.2786103]
[1718910061839,15.6852,134.33,134.26,0.8304103]
[1718910062315,15.6852,134.33,134.26,8.2785103]
[1718910062508,15.6852,134.33,134.26,0.8304103]
[1718910062705,15.6852,134.33,134.26,8.2783103]
[1718910062909,0.34,134.32,134.26,8.2783103]
[1718910064430,0.34,134.32,134.26,0.8304103]
[1718910065315,0.34,134.32,134.26,8.2785103]
[1718910065827,0.34,134.32,134.26,0.8304103]
[1718910068533,15.6852,134.33,134.27,7.4472]
[1718910068718,15.6852,134.33,134.26,8.2783103]
[1718910069637,15.6852,134.33,134.27,7.4474]
[1718910070130,15.6852,134.33,134.26,0.8304103]
[1718910070322,0.34,134.32,134.26,0.8304103]
[1718910070517,15.6852,134.33,134.26,8.2785103]
[1718910070713,15.6852,134.33,134.26,0.8304103]
[1718910071318,0.34,134.32,134.26,0.8304103]
[1718910072643,0.34,134.32,134.26,8.2785103]
[1718910079130,6.499,134.27,134.26,0.8304103]
[1718910079730,6.669,134.27,134.19,20.0]
[1718910079921,15.5396,134.25,134.14,27.97]
[1718910080115,15.5396,134.25,134.16,7.4535]
[1718910080339,0.34,134.24,134.15,7.4541]
[1718910080527,0.17,134.23,134.15,7.4541]
[1718910081147,15.5396,134.25,134.19,7.452]
[1718910081940,6.499,134.27,134.17,50.35]
[1718910082247,6.1224,134.3,134.24,7.449]
[1718910082813,6.1224,134.3,134.25,7.4487]
[1718910083039,6.1224,134.3,134.24,7.449]
[1718910083338,6.1224,134.3,134.25,7.4487]
[1718910083550,6.1224,134.3,134.24,7.4491]
[1718910083845,21.2386,134.36,134.26,27.97]
[1718910084030,21.2386,134.36,134.27,27.4474]
[1718910084230,21.2386,134.36,134.27,20.0]
[1718910085142,67.62021232,134.36,134.27,20.0]
[1718910085465,1.72161232,134.35,134.25,27.4484]
[1718910085620,0.17,134.34,134.25,27.4484]
[1718910085928,21.5518,134.33,134.22,7.45]
[1718910086134,45.0,134.32,134.23,27.4494]
[1718910086338,0.34,134.31,134.23,27.4494]
[1718910086519,0.34,134.31,134.24,7.4492]
[1718910086720,0.17,134.3,134.24,7.4492]
[1718910087143,0.17,134.3,134.23,20.0]
[1718910087350,0.17,134.3,134.23,27.4496]
[1718910088434,0.17,134.3,134.24,7.4493]
[1718910088639,23.27341232,134.33,134.25,7.4487]
[1718910088957,23.27341232,134.33,134.26,7.448]
[1718910089116,21.5518,134.33,134.26,7.448]
[1718910089456,21.5518,134.33,134.27,7.4476]
[1718910089752,21.5518,134.33,134.29,7.4464]
[1718910090249,21.5518,134.33,134.28,7.4469]
[1718910090750,21.5518,134.33,134.29,7.4463]
[1718910091351,21.5518,134.33,134.28,7.447]
[1718910091641,21.5518,134.33,134.29,7.4464]
[1718910091852,21.7588,134.36,134.27,27.97]
[1718910092150,21.7588,134.36,134.29,7.4463]
[1718910092635,21.7588,134.36,134.3,7.4458]
[1718910093136,21.7588,134.36,134.29,7.4463]
[1718910094026,21.7588,134.36,134.27,27.97]
[1718910094230,0.17,134.35,134.28,20.0]
[1718910094426,0.51,134.35,134.28,20.0]
[1718910094829,0.34,134.35,134.28,20.0]
[1718910095762,0.34,134.35,134.29,7.4464]
[1718910096134,0.34,134.35,134.28,20.0]
[1718910097252,21.7588,134.36,134.28,20.0]
[1718910097435,21.7588,134.36,134.3,27.97]
[1718910097834,21.7588,134.36,134.3,35.4157]
[1718910098243,21.7588,134.36,134.31,7.4454]
[1718910098952,21.7588,134.36,134.32,7.4448]
[1718910099155,22.0406,134.43,134.32,7.4446]
[1718910099339,22.0406,134.43,134.33,7.4441]
[1718910099661,23.76221232,134.43,134.33,7.4441]
[1718910100063,29.74352007,134.43,134.33,7.4441]
[1718910100244,29.74352007,134.43,134.32,7.4446]
[1718910101163,0.17,134.42,134.32,7.4446]
[1718910101367,0.51,134.42,134.32,7.4446]
[1718910101661,45.51,134.42,134.32,7.4446]
[1718910105272,15.0068,134.4,134.3,27.97]
[1718910105573,15.0068,134.4,134.31,20.0]
[1718910105574,6.2788,134.38,134.31,20.0]
[1718910105870,6.2788,134.38,134.29,27.97]
[1718910106045,0.17,134.37,134.3,20.0]
[1718910106245,0.34,134.37,134.3,27.4457]
[1718910108160,0.34,134.37,134.31,7.4453]
[1718910108458,0.34,134.37,134.32,20.0]
[1718910108661,16.017,134.36,134.29,27.97]
[1718910108959,16.017,134.36,134.29,35.4163]